Workbook

Sheet Лист1
A1: Школа | C1: ГБОУ "Чистопольская кадетская школа-интернат" | F1: Утвердил: | G1: должность | H1: Директор
A2: Типовое примерное меню приготавливаемых блюд | G2: фамилия | H2: Буслаева Вера Ивановна
A3: Возрастная категория | E3: 7-11 лет | G3: дата | H3: 9 | I3: 1 | J3: 2024
H4: день | I4: месяц | J4: год
A5: Неделя | B5: День недели | C5: Прием пищи | D5: Раздел меню | E5: Блюда | F5: Вес блюда, г | G5: Белки | H5: Жиры | I5: Углеводы | J5: Калорийность | K5: № рецептуры | L5: Цена
A6: 1 | B6: 1 | C6: Завтрак | D6: Выпечка | E6: Булочка домашняя | F6: 80 | G6: 5.84 | H6: 9.36 | I6: 44.32 | J6: 286.40
D7: Гор.блюдо | E7: Каша молочная "Дружба" с маслом | F7: 150/10 | G7: 5.60 | H7: 7.60 | I7: 29.50 | J7: 209.00
D8: Хлеб | E8: Хлеб пшеничный | F8: 30 | G8: 2.25 | H8: 0.87 | I8: 15.00 | J8: 75.00
D9: Хлеб | E9: Хлеб ржано-пшеничный | F9: 30 | G9: 1.98 | H9: 0.33 | I9: 12.30 | J9: 62.00
D10: Гор.напиток | E10: Чай с лимоном и сахаром | F10: 200/7/10 | G10: 0.10 | H10: 0.00 | I10: 9.30 | J10: 37.00
D13: итого | G13: =SUM(G6:G12) -> 15.77 | H13: 18.16 | I13: 110.42 | J13: 669.4 | L13: 66.76
A14: =A6 -> 1 | B14: =B6 -> 1 | C14: Обед | D14: закуска
D15: 1 блюдо
D16: 2 блюдо
D17: гарнир
D18: напиток
D19: хлеб бел.
D20: хлеб черн.
D23: итого | F23: =SUM(F14:F22) -> 0 | G23: =SUM(G14:G22) -> 0 | H23: 0 | I23: 0 | J23: 0 | L23: =SUM(L14:L22) -> 0
A24: =A6 -> 1 | B24: =B6 -> 1 | C24: Итого за день: | F24: =F13+F23 -> 0 | G24: =G13+G23 -> 15.77 | H24: 18.16 | I24: 110.42 | J24: 669.4 | L24: 66.76
A25: 1 | B25: 2 | C25: Завтрак
D26: Гор.блюдо | E26: Ёжики из говядины с рисом в соусе том. | F26: 80/30 | G26: 9.20 | H26: 13.00 | I26: 10.70 | J26: 197.00
D27: Хлеб | E27: Хлеб пшеничный | F27: 30 | G27: 2.25 | H27: 0.87 | I27: 15.00 | J27: 75.00
D28: Хлеб | E28: Хлеб ржано-пшеничный | F28: 30 | G28: 1.98 | H28: 0.33 | I28: 12.30 | J28: 62.00
D29: Гор.напиток | E29: Какао с молоком | F29: 200 | G29: 3.30 | H29: 3.10 | I29: 13.60 | J29: 94.00
D30: Гарнир | E30: Макаронные изделия отварные | F30: 150/5 | G30: 5.5 | H30: 3.92 | I30: 32.83 | J30: 192
D32: итого | G32: =SUM(G25:G31) -> 22.23 | H32: 21.22 | I32: 84.43 | J32: 620 | L32: =$L$13 -> 66.76
A33: =A25 -> 1 | B33: =B25 -> 2 | C33: Обед | D33: закуска
D34: 1 блюдо
D35: 2 блюдо
D36: гарнир
D37: напиток
D38: хлеб бел.
D39: хлеб черн.
D42: итого | F42: =SUM(F33:F41) -> 0 | G42: =SUM(G33:G41) -> 0 | H42: 0 | I42: 0 | J42: 0 | L42: 0
A43: =A25 -> 1 | B43: =B25 -> 2 | C43: Итого за день: | F43: =F32+F42 -> 0 | G43: =G32+G42 -> 22.23 | H43: 21.22 | I43: 84.43 | J43: 620 | L43: 66.76
A44: 1 | B44: 3 | C44: Завтрак | D44: гарнир | E44: Гарнир рисовый | F44: 150/5 | G44: 3.58 | H44: 3.92 | I44: 36.80 | J44: 200.00
D45: гор блюдо | E45: Куриная грудка в сливочном соусе | F45: 80/40 | G45: 20.00 | H45: 16.80 | I45: 0.30 | J45: 232.00
D46: хлеб | E46: Хлеб пшеничный | F46: 30 | G46: 2.25 | H46: 0.87 | I46: 15.00 | J46: 75.00
D47: хлеб | E47: Хлеб ржано-пшеничный | F47: 30 | G47: 1.98 | H47: 0.33 | I47: 12.30 | J47: 62.00
D48: гор напиток | E48: Компот из смеси сухофруктов | F48: 200 | G48: 3 | H48: 2 | I48: 29 | J48: 143
D51: итого | G51: 28.31 | H51: 22.02 | I51: 95.6 | J51: 690 | L51: =$L$32 -> 66.76
A52: =A44 -> 1 | B52: =B44 -> 3 | C52: Обед | D52: закуска
D53: 1 блюдо
D54: 2 блюдо
D55: гарнир
D56: напиток
D57: хлеб бел.
D58: хлеб черн.
D61: итого | F61: =SUM(F52:F60) -> 0 | G61: =SUM(G52:G60) -> 0 | H61: 0 | I61: 0 | J61: 0 | L61: 0
A62: =A44 -> 1 | B62: =B44 -> 3 | C62: Итого за день: | F62: =F51+F61 -> 0 | G62: =G51+G61 -> 28.31 | H62: 22.02 | I62: 95.6 | J62: 690 | L62: 66.76
A63: 1 | B63: 4 | C63: Завтрак | D63: Холодная закуска | E63: Сыр порциями | F63: 30 | G63: 6.96 | H63: 8.85 | I63: 0.00 | J63: 109.20
D64: Гор.блюдо | E64: Каша ячневая молочная с маслом | F64: 150/10 | G64: 5.22 | H64: 6.00 | I64: 26.82 | J64: 183.00
D65: Хлеб | E65: Хлеб пшеничный | F65: 30 | G65: 2.25 | H65: 0.87 | I65: 15.00 | J65: 75.00
D66: Хлеб | E66: Хлеб ржано-пшеничный | F66: 30 | G66: 1.98 | H66: 0.33 | I66: 12.30 | J66: 62.00
D67: Гор.напиток | E67: Напиток из шиповника | F67: 200 | G67: 0.60 | H67: 0.20 | I67: 27.00 | J67: 111.00
D68: Закуска | E68: Яйцо вареная | F68: 50 | G68: 6.3 | H68: 5.3 | I68: 0.5 | J68: 78
D70: итого | G70: =SUM(G63:G69) -> 23.31 | H70: 21.55 | I70: 81.62 | J70: 618.2 | L70: =$L$51 -> 66.76
A71: =A63 -> 1 | B71: =B63 -> 4 | C71: Обед | D71: закуска
D72: 1 блюдо
D73: 2 блюдо
D74: гарнир
D75: напиток
D76: хлеб бел.
D77: хлеб черн.
D80: итого | F80: =SUM(F71:F79) -> 0 | G80: =SUM(G71:G79) -> 0 | H80: 0 | I80: 0 | J80: 0 | L80: 0
A81: =A63 -> 1 | B81: =B63 -> 4 | C81: Итого за день: | F81: =F70+F80 -> 0 | G81: =G70+G80 -> 23.31 | H81: 21.55 | I81: 81.62 | J81: 618.2 | L81: 66.76
A82: 1 | B82: 5 | C82: Завтрак
D83: гор блюдо | E83: Каша гречневая с овощами и мясным фаршем | F83: 250 | G83: 26.10 | H83: 25.30 | I83: 38.60 | J83: 490.00
D84: хлеб | E84: Хлеб пшеничный | F84: 30 | G84: 2.25 | H84: 0.87 | I84: 15.00 | J84: 75.00
D85: хлеб | E85: Хлеб ржано-пшеничный | F85: 30 | G85: 1.98 | H85: 0.33 | I85: 12.30 | J85: 62.00
D86: гор напиток | E86: Компот из свежих руктов | F86: 200 | G86: 0.20 | H86: 0.10 | I86: 17.20 | J86: 68.00
D89: итого | G89: =SUM(G82:G88) -> 30.53 | H89: 26.6 | I89: 83.1 | J89: 695 | L89: =$L$51 -> 66.76
A90: =A82 -> 1 | B90: =B82 -> 5 | C90: Обед | D90: закуска
D91: 1 блюдо
D92: 2 блюдо
D93: гарнир
D94: напиток
D95: хлеб бел.
D96: хлеб черн.
D99: итого | F99: =SUM(F90:F98) -> 0 | G99: =SUM(G90:G98) -> 0 | H99: 0 | I99: 0 | J99: 0 | L99: 0
A100: =A82 -> 1 | B100: =B82 -> 5 | C100: Итого за день: | F100: =F89+F99 -> 0 | G100: =G89+G99 -> 30.53 | H100: 26.6 | I100: 83.1 | J100: 695 | L100: 66.76
A101: 2 | B101: 1 | C101: Завтрак | D101: гор.блюдо | E101: Каша молочная пшеничная с маслом | F101: 150/10 | G101: 5.42 | H101: 6.08 | I101: 26.60 | J101: 178.00
D102: хлеб | E102: Хлеб пшеничный | F102: 30 | G102: 2.25 | H102: 0.87 | I102: 15.00 | J102: 75.00
D103: хлеб | E103: Хлеб ржано-пшеничный | F103: 30 | G103: 1.98 | H103: 0.33 | I103: 12.30 | J103: 62.00
D104: гор напиток | E104: Чай с лимоном и сахаром | F104: 200/7/10 | G104: 0.10 | H104: 0.00 | I104: 9.30 | J104: 37.00
D105: выпечка | E105: Ватрушка с творогом | F105: 80 | G105: 9.8 | H105: 4.8 | I105: 31 | J105: 209
D108: итого | G108: =SUM(G101:G107) -> 19.55 | H108: 12.08 | I108: 94.2 | J108: 561 | L108: =$L$89 -> 66.76
A109: =A101 -> 2 | B109: =B101 -> 1 | C109: Обед | D109: закуска
D110: 1 блюдо
D111: 2 блюдо
D112: гарнир
D113: напиток
D114: хлеб бел.
D115: хлеб черн.
D118: итого | F118: =SUM(F109:F117) -> 0 | G118: =SUM(G109:G117) -> 0 | H118: 0 | I118: 0 | J118: 0 | L118: =SUM(L109:L117) -> 0
A119: =A101 -> 2 | B119: =B101 -> 1 | C119: Итого за день: | F119: =F108+F118 -> 0 | G119: =G108+G118 -> 19.55 | H119: 12.08 | I119: 94.2 | J119: 561 | L119: 66.76
A120: 2 | B120: 2 | C120: Завтрак | D120: гарнир | E120: Гарнир гречневый | F120: 30 | G120: 8.70 | H120: 5.70 | I120: 37.80 | J120: 240.00
D121: гор блюдо | E121: Сосиски (халяль)отварные с маслом | F121: 100/10 | G121: 10.00 | H121: 21.70 | I121: 0.80 | J121: 238.00
D122: хлеб | E122: Хлеб пшеничный | F122: 30 | G122: 2.25 | H122: 0.87 | I122: 15.00 | J122: 75.00
D123: хлеб | E123: Хлеб ржано- пшеничный | F123: 30 | G123: 1.98 | H123: 0.33 | I123: 12.30 | J123: 62.00
D124: гор напиток | E124: Компот из компотной смес (замор.ягод) | F124: 200 | G124: 0 | H124: 0 | I124: 18 | J124: 73
D127: итого | F127: =SUM(F120:F126) -> 290 | G127: =SUM(G120:G126) -> 23.14 | H127: 28.64 | I127: 83.91 | J127: 688 | L127: =$L$108 -> 66.76
A128: =A120 -> 2 | B128: =B120 -> 2 | C128: Обед | D128: закуска
D129: 1 блюдо
D130: 2 блюдо
D131: гарнир
D132: напиток
D133: хлеб бел.
D134: хлеб черн.
D137: итого | F137: =SUM(F128:F136) -> 0 | G137: =SUM(G128:G136) -> 0 | H137: 0 | I137: 0 | J137: 0 | L137: =SUM(L128:L136) -> 0
A138: =A120 -> 2 | B138: =B120 -> 2 | C138: Итого за день: | G138: =G127+G137 -> 23.14 | H138: 28.64 | I138: 83.91 | J138: 688 | L138: 66.76
A139: 2 | B139: 3 | C139: Завтрак | D139: Гор.блюдо | E139: Горбуша тушеная в томате с овощами | F139: 80/40 | G139: 23.20 | H139: 11.60 | I139: 4.70 | J139: 216.00
D140: Гарнир | E140: Гарнир рисовый | F140: 150/5 | G140: 3.58 | H140: 3.92 | I140: 36.80 | J140: 200.00
D141: Хлеб | E141: Хлеб ржано-пшеничный | F141: 30 | G141: 1.98 | H141: 0.33 | I141: 12.30 | J141: 62.00
D142: Хлеб | E142: Хлеб пшеничный | F142: 30 | G142: 2.25 | H142: 0.87 | I142: 15.00 | J142: 75.00
D143: Гор напиток | E143: Компот из смеси сухофруктов | F143: 200 | G143: 1 | H143: 0 | I143: 31 | J143: 121
D146: итого | G146: =SUM(G139:G145) -> 31.51 | H146: 16.82 | I146: 100 | J146: 674 | L146: =$L$127 -> 66.76
A147: =A139 -> 2 | B147: =B139 -> 3 | C147: Обед | D147: закуска
D148: 1 блюдо
D149: 2 блюдо
D150: гарнир
D151: напиток
D152: хлеб бел.
D153: хлеб черн.
D156: итого | F156: =SUM(F147:F155) -> 0 | G156: =SUM(G147:G155) -> 0 | H156: 0 | I156: 0 | J156: 0 | L156: =SUM(L147:L155) -> 0
A157: =A139 -> 2 | B157: =B139 -> 3 | C157: Итого за день: | G157: =G146+G156 -> 31.51 | H157: 16.82 | I157: 100 | J157: 674 | L157: 66.76
A158: 2 | B158: 4 | C158: Завтрак | D158: Гор.блюдо | E158: Котлеты из мяса говядины с маслом | F158: 100/10 | G158: 20.60 | H158: 18.30 | I158: 17.50 | J158: 320.00
D159: Гарнир | E159: Пюре гороховое | F159: 30 | G159: 14.70 | H159: 4.80 | I159: 34.70 | J159: 243.00
D160: Хлеб | E160: ='[1]1'!D6 -> Хлеб пшеничный | F160: 30 | G160: 2.25 | H160: 0.87 | I160: 15.00 | J160: 75.00
D161: Хлеб | E161: ='[1]1'!D7 -> Хлеб ржано-пшеничный | F161: 30 | G161: 2 | H161: 0 | I161: 12 | J161: 62
D162: Гор напиток | E162: Компот из свежих фруктов | F162: 200 | G162: 0 | H162: 0 | I162: 17 | J162: 68
D165: итого | G165: =SUM(G158:G164) -> 39.73 | H165: 24.4 | I165: 96.7 | J165: 768 | L165: =$L$146 -> 66.76
A166: =A158 -> 2 | B166: =B158 -> 4 | C166: Обед | D166: закуска
D167: 1 блюдо
D168: 2 блюдо
D169: гарнир
D170: напиток
D171: хлеб бел.
D172: хлеб черн.
D175: итого | F175: =SUM(F166:F174) -> 0 | G175: =SUM(G166:G174) -> 0 | H175: 0 | I175: 0 | J175: 0 | L175: =SUM(L166:L174) -> 0
A176: =A158 -> 2 | B176: =B158 -> 4 | C176: Итого за день: | G176: =G165+G175 -> 39.73 | H176: 24.4 | I176: 96.7 | J176: 768 | L176: 66.76
A177: 2 | B177: 5 | C177: Завтрак | D177: Гор.блюдо | E177: Каша пшеничная молочная с маслом | F177: 150/10 | G177: 5.42 | H177: 6.70 | I177: 25.60 | J177: 184.00
D178: Гор.напиток | E178: Напиток из плодов шиповника | F178: 200 | G178: 0.60 | H178: 0.20 | I178: 27.00 | J178: 111.00
D179: Хлеб | E179: Хлеб пшеничный | F179: 30 | G179: 2.25 | H179: 0.87 | I179: 15.00 | J179: 75.00
D180: Хлеб | E180: Хлеб ржано-пшеничный | F180: 30 | G180: 1.98 | H180: 0.33 | I180: 12.30 | J180: 62.00
D181: Закуска | E181: Сыр порциями | F181: 30 | G181: 6.96 | H181: 8.85 | I181: 0.00 | J181: 109.20
D182: Закуска | E182: Яйцо варёное | F182: 50 | G182: 6.3 | H182: 5.3 | I182: 0.5 | J182: 78
D184: итого | G184: =SUM(G177:G183) -> 23.51 | H184: 22.25 | I184: 80.4 | J184: 619.2 | L184: =$L$165 -> 66.76
A185: =A177 -> 2 | B185: =B177 -> 5 | C185: Обед | D185: закуска
D186: 1 блюдо
D187: 2 блюдо
D188: гарнир
D189: напиток
D190: хлеб бел.
D191: хлеб черн.
D194: итого | F194: =SUM(F185:F193) -> 0 | G194: =SUM(G185:G193) -> 0 | H194: 0 | I194: 0 | J194: 0 | L194: =SUM(L185:L193) -> 0
A195: =A177 -> 2 | B195: =B177 -> 5 | C195: Итого за день: | G195: =G184+G194 -> 23.51 | H195: 22.25 | I195: 80.4 | J195: 619.2 | L195: 66.76
C196: Среднее значение за период: | G196: =(G24+G43+G62+G81+G100+G119+G138+G157+G176+G195)/(IF(G24=0,0,1)+IF(G43=0,0,1)+IF(G62=0,0,1)+IF(G81=0,0,1)+IF(G100=0,0,1)+IF(G119=0,0,1)+IF(G138=0,0,1)+IF(G157=0,0,1)+IF(G176=0,0,1)+IF(G195=0,0,1)) -> 25.759 | H196: 21.374 | I196: 91.038 | J196: 660.28 | L196: =(L24+L43+L62+L81+L100+L119+L138+L157+L176+L195)/(IF(L24=0,0,1)+IF(L43=0,0,1)+IF(L62=0,0,1)+IF(L81=0,0,1)+IF(L100=0,0,1)+IF(L119=0,0,1)+IF(L138=0,0,1)+IF(L157=0,0,1)+IF(L176=0,0,1)+IF(L195=0,0,1)) -> 66.76
